bitfinex-derivatives/quotes_ETHF0:USTF0_20260113
["timestamp","ask_amount","ask_price","bid_price","bid_amount"]
[1768263266525,0.40652608,3103.6,3102.4,5.02167038]
[1768263266723,0.40652608,3103.5,3102.4,5.02167038]
[1768263266922,0.40652608,3103.4,3102.4,5.02167038]
[1768263267126,1.546,3103.7,3102.4,5.02167038]
[1768263267325,0.40652442,3103.6,3102.4,5.02167038]
[1768263267525,0.40652442,3103.5,3102.4,5.02167038]
[1768263267721,0.40652442,3103.4,3102.4,5.02167038]
[1768263267923,1.546,3103.7,3102.4,5.02167038]
[1768263268126,0.40657978,3103.6,3102.4,5.02167038]
[1768263268321,0.40657978,3103.5,3102.4,5.02167038]
[1768263268529,0.40657978,3103.4,3102.7,0.00482812]
[1768263268715,0.40657978,3103.3,3102.7,0.00482812]
[1768263268915,1.546,3103.7,3102.7,0.00482812]
[1768263269218,0.40664767,3103.6,3102.7,0.00482812]
[1768263269421,0.40664767,3103.5,3102.7,0.00482812]
[1768263269622,0.40664767,3103.4,3102.7,0.00482812]
[1768263269823,0.40664767,3103.3,3102.7,0.00482812]
[1768263270022,5.04305901,3103.7,3102.7,0.00482812]
[1768263270230,0.40672994,3103.6,3102.7,0.00482812]
[1768263270422,0.40672994,3103.5,3102.7,0.00482812]
[1768263270626,0.40672994,3103.4,3102.7,0.00482812]
[1768263270926,0.40672994,3103.3,3102.7,0.00482812]
[1768263271130,0.40684825,3103.2,3102.7,0.00482812]
[1768263271428,5.04305901,3103.7,3102.7,0.00482812]
[1768263271633,1.20664494,3103.6,3102.7,0.00482812]
[1768263271824,0.40684903,3103.5,3102.7,0.00482812]
[1768263272024,0.40684903,3103.4,3102.7,0.00482812]
[1768263272223,0.40684903,3103.3,3102.7,0.00482812]
[1768263272434,5.04305901,3103.7,3102.7,0.00482812]
[1768263272622,1.20568807,3103.6,3102.7,0.00482812]
[1768263272829,0.4044401,3103.5,3102.7,0.00482812]
[1768263273029,0.4044401,3103.4,3102.7,0.00482812]
[1768263273329,0.4044401,3103.3,3102.7,0.00482812]
[1768263273531,5.04305901,3103.7,3102.7,0.00482812]
[1768263273732,1.20567393,3103.6,3102.7,0.00482812]
[1768263273931,0.40443521,3103.5,3102.7,0.00482812]
[1768263274246,0.40443521,3103.4,3102.7,0.00482812]
[1768263274428,0.40443521,3103.3,3102.7,0.00482812]
[1768263274638,5.04305901,3103.7,3102.7,0.00482812]
[1768263274824,0.40128384,3103.6,3102.7,0.00482812]
[1768263275026,0.40128384,3103.5,3102.7,0.00482812]
[1768263275232,0.40128384,3103.4,3102.7,0.00482812]
[1768263275434,5.04305901,3103.7,3102.7,0.00482812]
[1768263275435,0.40128384,3103.3,3102.7,0.00482812]
[1768263275630,5.04305901,3103.7,3102.7,0.00482812]
[1768263275937,0.40128212,3103.6,3102.7,0.00482812]
[1768263276134,0.40128212,3103.5,3102.7,0.00482812]
[1768263276335,0.40128212,3103.4,3102.7,0.00482812]
[1768263276537,0.40128212,3103.3,3102.7,0.00482812]
[1768263276728,5.04305901,3103.7,3102.7,0.00482812]
[1768263276928,0.40128812,3103.6,3102.7,0.00482812]
[1768263277129,0.40128812,3103.5,3102.7,0.00482812]
[1768263277332,0.40128812,3103.4,3102.7,0.00482812]
[1768263277534,0.40128812,3103.3,3102.7,0.00482812]
[1768263277731,5.04305901,3103.7,3102.7,0.00482812]
[1768263277933,0.40129577,3103.6,3102.7,0.00482812]
[1768263278134,0.40129577,3103.5,3102.7,0.00482812]
[1768263278335,0.40129577,3103.4,3102.7,0.00482812]
[1768263278537,0.40129577,3103.3,3102.7,0.00482812]
[1768263278731,5.04305901,3103.7,3102.7,0.00482812]
[1768263278934,0.40130706,3103.6,3102.7,0.00482812]
[1768263279132,0.40130706,3103.5,3102.7,0.00482812]
[1768263279426,0.40130706,3103.4,3102.7,0.00482812]
[1768263279631,0.40130706,3103.3,3102.7,0.00482812]
[1768263279933,5.04305901,3103.7,3102.7,0.00482812]
[1768263280124,0.40132027,3103.6,3102.7,0.00482812]
[1768263280329,0.40132027,3103.5,3102.7,0.00482812]
[1768263280526,0.40132027,3103.4,3102.7,0.00482812]
[1768263280738,0.40132027,3103.3,3102.7,0.00482812]
[1768263280940,5.04305901,3103.7,3102.7,0.00482812]
[1768263281141,1.20569949,3103.6,3102.7,0.00482812]
[1768263281342,0.4013312,3103.5,3102.7,0.00482812]
[1768263281542,0.4013312,3103.4,3102.7,0.00482812]
[1768263281744,0.4013312,3103.3,3102.7,0.00482812]
[1768263281942,5.04305901,3103.7,3102.7,0.00482812]
[1768263282138,1.20574566,3103.6,3102.7,0.00482812]
[1768263282341,5.04305901,3103.7,3102.7,0.00482812]
[1768263282342,0.40134756,3103.5,3102.7,0.00482812]
[1768263282535,0.40134756,3103.4,3102.7,0.00482812]
[1768263282733,0.40134756,3103.3,3102.7,0.00482812]
[1768263282941,5.04305901,3103.7,3102.7,0.00482812]
[1768263283139,1.20580983,3103.6,3102.7,0.00482812]
[1768263283339,0.40136962,3103.5,3102.7,0.00482812]
[1768263283540,0.40136962,3103.4,3102.7,0.00482812]
[1768263283731,0.40136962,3103.3,3102.7,0.00482812]
[1768263283935,5.04305901,3103.7,3102.7,0.00482812]
[1768263284137,1.205863,3103.6,3102.7,0.00482812]
[1768263284338,0.40138957,3103.5,3102.7,0.00482812]
[1768263284538,0.40138957,3103.4,3102.7,0.00482812]
[1768263284740,0.40138957,3103.3,3102.7,0.00482812]
[1768263284940,5.04305901,3103.7,3102.7,0.00482812]
[1768263285242,1.21406136,3103.6,3102.7,0.00482812]
[1768263285541,1.21406136,3103.5,3102.7,0.00482812]
[1768263285743,0.4014186,3103.4,3102.7,0.00482812]
[1768263285939,0.40145721,3103.3,3102.7,0.00482812]
[1768263286139,5.04305901,3103.7,3102.7,0.00482812]
[1768263286445,1.21421702,3103.6,3102.7,0.00482812]
[1768263286746,1.21421702,3103.5,3102.7,0.00482812]
[1768263286942,0.40147631,3103.4,3102.7,0.00482812]
[1768263287143,5.04305901,3103.7,3102.7,0.00482812]
[1768263287144,0.40147631,3103.3,3102.7,0.00482812]
[1768263287344,5.04305901,3103.7,3102.7,0.00482812]
[1768263287544,1.21329212,3103.6,3102.7,0.00482812]
[1768263287738,1.21329212,3103.5,3102.7,0.00482812]
[1768263287938,0.39917554,3103.4,3102.7,0.00482812]
[1768263288144,0.39917554,3103.3,3102.7,0.00482812]
[1768263288339,5.04305901,3103.7,3102.7,0.00482812]
[1768263288537,1.21332516,3103.6,3102.7,0.00482812]
[1768263288739,1.21332516,3103.5,3102.7,0.00482812]
[1768263288940,0.39917645,3103.4,3102.7,0.00482812]
[1768263289143,0.39917645,3103.3,3102.7,0.00482812]
[1768263289446,5.04305901,3103.7,3102.7,0.00482812]
[1768263289642,1.21334909,3103.6,3102.7,0.00482812]
[1768263289838,1.21334909,3103.5,3102.7,0.00482812]
[1768263290034,0.39918117,3103.4,3102.7,0.00482812]
[1768263290253,0.39918117,3103.3,3102.7,0.00482812]
[1768263290549,5.04305901,3103.7,3102.7,0.00482812]
[1768263290738,1.21335179,3103.6,3102.7,0.00482812]
[1768263290935,1.21335179,3103.5,3102.7,0.00482812]
[1768263291145,5.04305901,3103.7,3102.7,0.00482812]
[1768263291146,0.39918283,3103.4,3102.7,0.00482812]
[1768263291347,0.39918283,3103.3,3102.7,0.00482812]
[1768263291650,5.04305901,3103.7,3102.7,0.00482812]
[1768263291845,1.21337159,3103.6,3102.7,0.00482812]
[1768263292038,1.21337159,3103.5,3102.7,0.00482812]
[1768263292238,0.39918894,3103.4,3102.7,0.00482812]
[1768263292442,0.39918894,3103.3,3102.7,0.00482812]
[1768263292644,5.04305901,3103.7,3102.7,0.00482812]
[1768263292845,1.21336817,3103.6,3102.7,0.00482812]
[1768263293047,1.21336817,3103.5,3102.7,0.00482812]
[1768263293246,0.39918792,3103.4,3102.7,0.00482812]
[1768263293446,0.39918792,3103.3,3102.7,0.00482812]
[1768263293654,5.04305901,3103.7,3102.7,0.00482812]
[1768263293848,1.21339704,3103.6,3102.7,0.00482812]
[1768263294047,1.21339704,3103.5,3102.7,0.00482812]
[1768263294349,0.39919009,3103.4,3102.7,0.00482812]
[1768263294646,0.39919009,3103.3,3102.7,0.00482812]
[1768263294850,5.04305901,3103.7,3102.7,0.00482812]
[1768263295055,1.21336471,3103.6,3102.7,0.00482812]
[1768263295351,1.21336471,3103.5,3102.7,0.00482812]
[1768263295551,0.39918668,3103.4,3102.7,0.00482812]
[1768263295753,0.39918668,3103.3,3102.7,0.00482812]
[1768263295951,4.62085736,3103.6,3102.7,0.00482812]
[1768263296246,3.46089937,3103.4,3102.2,2.71]
[1768263296446,4.67427596,3103.3,3102.2,2.71]
[1768263296645,1.21337659,3103.2,3102.2,2.71]
[1768263296847,2.76037659,3103.1,3102.2,2.71]
[1768263297047,0.39918976,3103.0,3102.0,2.31167038]
[1768263297250,0.39918976,3102.9,3101.9,2.31167038]
[1768263297555,5.00789937,3103.1,3101.9,2.31167038]
[1768263297760,0.39891195,3103.0,3101.9,2.31167038]
[1768263297951,0.39891195,3102.9,3101.9,2.31167038]
[1768263298143,5.00789937,3103.1,3101.8,2.31167038]
[1768263298352,0.39880521,3103.0,3101.8,2.31167038]
[1768263298659,0.39880521,3103.0,3101.7,6.21586151]
[1768263298660,0.39880521,3102.9,3101.7,2.31167038]
[1768263298955,0.39880521,3102.8,3101.6,2.31167038]
[1768263299162,0.39867225,3102.7,3101.5,5.02506549]
[1768263299453,5.00789937,3103.1,3101.6,2.31167038]
[1768263299657,1.22089353,3103.0,3101.5,5.02506549]
[1768263299853,1.22089353,3102.9,3101.5,5.02506549]
[1768263300053,1.22089353,3102.8,3101.5,5.02506549]
[1768263300257,0.39866806,3102.7,3101.5,5.02506549]
[1768263300452,5.00789937,3103.1,3101.5,5.02506549]
[1768263300653,1.22085233,3103.0,3101.5,5.02506549]
[1768263300855,1.22085233,3102.9,3101.5,5.02506549]
[1768263301155,0.3986548,3102.8,3101.5,5.02506549]
[1768263301359,5.00789937,3103.1,3101.5,5.02506549]
[1768263301556,1.22036611,3103.0,3101.5,8.530927]
[1768263301858,1.22036611,3102.9,3101.5,8.530927]
[1768263302065,0.39849981,3102.8,3101.5,8.530927]
[1768263302250,5.00789937,3103.1,3101.5,6.21925662]
[1768263302452,1.21999623,3103.0,3101.5,6.21925662]
[1768263302662,1.21999623,3102.9,3101.5,6.21925662]
[1768263302855,0.39837966,3102.8,3101.5,6.21925662]
[1768263303055,5.00789937,3103.1,3101.5,6.21925662]
[1768263303355,3.46089937,3102.9,3101.5,6.21925662]
[1768263303559,3.85926264,3102.8,3101.5,3.50925662]
[1768263303745,0.39836327,3102.7,3101.5,3.50925662]
[1768263303953,3.46089937,3102.8,3101.5,3.50925662]
[1768263304154,0.39829025,3102.7,3101.5,3.50925662]
[1768263304453,3.46089937,3102.8,3101.5,0.00339511]
[1768263307364,3.46089937,3102.8,3101.5,2.71339511]
[1768263313280,3.46089937,3102.8,3101.6,2.71]
[1768263322282,0.39833878,3102.7,3101.6,2.71]
[1768263322474,3.46089937,3102.8,3101.6,2.71]
[1768263322675,0.39835222,3102.7,3101.6,2.71]
[1768263322879,3.46089937,3102.8,3101.6,2.71]
[1768263323078,0.39835188,3102.7,3101.6,2.71]
[1768263323270,3.46089937,3102.8,3101.6,2.71]
[1768263323470,0.3984829,3102.7,3101.6,2.71]
[1768263323674,3.46089937,3102.8,3101.6,2.71]
[1768263323974,0.3984829,3102.7,3101.6,2.71]
[1768263324170,3.46089937,3102.8,3101.6,2.71]
[1768263324378,0.3986279,3102.7,3101.6,2.71]
[1768263324577,3.46089937,3102.8,3101.6,2.71]
[1768263324781,0.39863883,3102.7,3101.6,2.71]
[1768263324982,3.46089937,3102.8,3101.6,2.71]
[1768263325174,0.39863878,3102.7,3101.6,2.71]
[1768263325375,0.39863878,3102.6,3101.6,2.71]
[1768263325583,3.46089937,3102.8,3101.6,2.71]
[1768263325770,0.39888852,3102.7,3101.6,2.71]
[1768263325975,0.39888852,3102.6,3101.6,2.71]
[1768263326176,3.46089937,3102.8,3101.6,2.71]
[1768263326478,1.23460874,3102.7,3101.6,2.71]
[1768263326677,0.39899804,3102.6,3101.6,2.71]
[1768263326880,3.46089937,3102.8,3101.6,2.71]
[1768263327180,1.23460874,3102.7,3101.6,2.71]
[1768263327379,1.39825095,3102.6,3101.6,2.71]
[1768263327581,0.39899804,3102.5,3101.6,2.71]
[1768263328086,0.39899804,3102.5,3101.6,5.02167038]
[1768263329586,0.99925291,3102.6,3101.6,5.02167038]
[1768263329778,0.3992728,3102.5,3101.6,5.02167038]
[1768263329977,0.99925291,3102.6,3101.6,5.02167038]
[1768263330178,0.3992728,3102.5,3101.6,5.02167038]
[1768263330485,0.99925291,3102.6,3101.6,5.02167038]
[1768263330687,0.39927387,3102.5,3101.6,5.02167038]
[1768263330885,0.99925291,3102.6,3101.6,5.02167038]
[1768263331076,0.39927387,3102.5,3101.6,5.02167038]
[1768263331278,0.99925291,3102.6,3101.6,5.02167038]
[1768263331479,0.39928684,3102.5,3101.6,5.02167038]
[1768263331681,0.99925291,3102.6,3101.6,5.02167038]
[1768263331880,0.3992872,3102.5,3101.6,5.02167038]
[1768263332085,0.99925291,3102.6,3101.6,5.02167038]
[1768263332281,0.3992872,3102.5,3101.6,5.02167038]
[1768263332478,0.99925291,3102.7,3101.7,3.6636642]
[1768263332683,0.3992977,3102.6,3101.7,3.6636642]
[1768263332880,0.3992977,3102.5,3101.7,3.6636642]
[1768263333083,0.99925291,3102.7,3101.7,3.6636642]
[1768263333283,0.39929761,3102.6,3101.7,3.6636642]
[1768263333485,0.39929761,3102.5,3101.7,3.6636642]
[1768263333786,0.99925291,3102.7,3101.7,3.6636642]
[1768263333985,0.39931579,3102.6,3101.7,3.6636642]
[1768263334188,0.39931579,3102.5,3101.7,3.6636642]
[1768263334385,0.16132,3103.1,3101.7,3.6636642]
[1768263334587,2.78659564,3103.0,3101.7,3.6636642]
[1768263334788,1.23559564,3102.9,3101.7,3.6636642]
[1768263334983,1.23559564,3102.8,3101.7,3.6636642]
[1768263335184,1.23559564,3102.7,3101.7,3.6636642]
[1768263335389,1.23559564,3102.6,3101.7,3.6636642]
[1768263335588,0.39931687,3102.5,3101.7,3.6636642]
[1768263335890,1.551,3103.0,3101.7,3.6636642]
[1768263336090,1.24371299,3102.9,3101.7,3.6636642]
[1768263336289,1.24371299,3102.8,3101.7,3.6636642]
[1768263336592,1.24371194,3102.7,3101.7,3.6636642]
[1768263336786,0.39931469,3102.6,3101.8,2.71]
[1768263336989,1.551,3103.0,3101.9,3.39568971]
[1768263337291,1.2436548,3102.9,3101.9,3.39568971]
[1768263337492,1.2436548,3102.8,3101.9,3.39568971]
[1768263337792,1.2436548,3102.7,3101.9,3.39568971]
[1768263338086,0.39929954,3102.6,3101.9,3.39568971]
[1768263338285,1.551,3103.0,3101.9,3.39568971]
[1768263338494,1.24353568,3102.9,3101.9,3.39568971]
[1768263338690,1.24353568,3102.8,3101.9,3.39568971]
[1768263338884,1.24353568,3102.7,3101.9,3.39568971]
[1768263339086,0.39926092,3102.6,3101.9,3.39568971]
[1768263339392,1.551,3103.0,3101.9,3.39568971]
[1768263339586,1.24347099,3102.9,3101.9,3.39568971]
[1768263339786,1.24347099,3102.8,3101.9,3.39568971]
[1768263339990,1.24347099,3102.7,3101.9,3.39568971]
[1768263340296,0.39924167,3102.6,3101.9,3.39568971]
[1768263340500,0.99925291,3102.9,3101.8,2.71]
[1768263340688,1.2434764,3102.8,3101.8,2.71]
[1768263340890,2.24272931,3102.7,3101.8,2.71]
[1768263341194,0.3992441,3102.6,3101.8,2.71]
[1768263342598,0.3992441,3102.6,3101.9,2.71]
[1768263343895,0.99925291,3102.7,3101.9,2.71]
[1768263344098,0.39923404,3102.6,3101.9,2.71]
[1768263344301,0.99925291,3102.7,3101.9,2.71]
[1768263344598,0.39923318,3102.6,3101.9,2.71]
[1768263344800,0.99925291,3102.7,3101.9,2.71]
[1768263345001,0.39923318,3102.6,3101.9,2.71]
[1768263345194,0.39923318,3102.5,3101.9,2.71]
[1768263345393,0.99925291,3102.7,3101.9,2.71]
[1768263345594,0.39923759,3102.6,3101.9,2.71]
[1768263345798,0.99925291,3102.7,3101.9,2.71]
[1768263345995,0.39923759,3102.6,3101.9,2.71]
[1768263346193,0.99925291,3102.7,3101.9,2.71]
[1768263346396,0.39923779,3102.6,3101.9,2.71]
[1768263346591,0.39923779,3102.5,3101.9,2.71]
[1768263346791,0.99925291,3102.7,3101.9,2.71]
[1768263346994,0.39924097,3102.6,3101.9,2.71]
[1768263347192,0.39924097,3102.5,3101.9,2.71]
[1768263347392,0.99925291,3102.7,3101.9,2.71]
[1768263347686,0.39924035,3102.6,3101.9,2.71]
[1768263347886,0.39924035,3102.5,3101.9,2.71]
[1768263348089,0.99925291,3102.7,3101.9,2.71]
[1768263348306,0.39924029,3102.6,3101.9,2.71]
[1768263348499,0.39924029,3102.5,3101.6,6.10568971]
[1768263348699,0.99925291,3102.7,3101.6,6.10568971]
[1768263348894,0.39924087,3102.6,3101.6,6.10568971]
[1768263349194,0.39924087,3102.5,3101.6,6.10568971]
[1768263349392,0.99925291,3102.7,3101.6,6.10568971]
[1768263349592,0.39924195,3102.6,3101.6,6.10568971]
[1768263349794,0.39924195,3102.5,3101.6,6.10568971]
[1768263350099,0.99925291,3102.7,3101.6,6.10568971]
[1768263350292,0.39924195,3102.6,3101.7,3.39568971]
[1768263350492,0.39924195,3102.5,3101.7,3.39568971]
[1768263350694,0.99925291,3102.7,3101.7,3.39568971]
[1768263350899,0.39924302,3102.6,3101.7,3.39568971]
[1768263351094,0.39924302,3102.5,3101.7,3.39568971]
[1768263351299,0.99925291,3102.7,3101.7,3.39568971]
[1768263351496,0.39924419,3102.6,3101.7,3.39568971]
[1768263351697,0.39924419,3102.5,3101.7,3.39568971]
[1768263351895,0.99925291,3102.7,3101.7,3.39568971]
[1768263352095,1.24503517,3102.6,3101.7,3.39568971]
[1768263352397,0.39925044,3102.5,3101.7,3.39568971]
[1768263352598,0.99925291,3102.7,3101.7,3.39568971]
[1768263352799,0.39924606,3102.6,3101.7,3.39568971]
[1768263353099,0.39924606,3102.5,3101.7,3.39568971]
[1768263353298,0.99925291,3102.7,3101.7,3.39568971]
[1768263353501,0.39924554,3102.6,3101.7,3.39568971]
[1768263353694,0.39924554,3102.5,3101.7,3.39568971]
[1768263353894,0.99925291,3102.7,3101.7,3.39568971]
[1768263354096,0.39695215,3102.6,3101.7,3.39568971]
[1768263354294,0.39694929,3102.5,3101.8,2.71]
[1768263354494,0.99925291,3102.7,3101.8,2.71]
[1768263354694,0.39694787,3102.6,3101.8,2.71]
[1768263354900,0.99925291,3102.7,3101.8,2.71]
[1768263355100,0.39694786,3102.6,3101.8,2.71]
[1768263355300,0.99925291,3102.7,3101.8,2.71]
[1768263355600,0.39694876,3102.6,3101.8,2.71]
[1768263355799,0.99925291,3102.7,3101.8,2.71]
[1768263356001,0.39694902,3102.6,3101.8,2.71]
[1768263356199,0.99925291,3102.7,3101.8,2.71]
[1768263356400,0.39695038,3102.6,3101.8,2.71]
[1768263356594,0.99925291,3102.7,3101.8,2.71]
[1768263356797,0.39695007,3102.6,3101.8,2.71]
[1768263357095,0.99925291,3102.7,3101.8,2.71]
[1768263357295,0.39695012,3102.6,3101.8,2.71]
[1768263357496,0.39695012,3102.5,3101.8,2.71]
[1768263357697,0.99925291,3102.8,3101.8,2.71]
[1768263357897,1.24405848,3102.7,3101.8,2.71]
[1768263358104,0.39695451,3102.6,3101.8,2.71]
[1768263358294,0.39695451,3102.5,3101.8,2.71]
[1768263358495,0.99925291,3102.8,3101.8,2.71]
[1768263358695,1.24406554,3102.7,3101.8,2.71]
[1768263358895,0.39695674,3102.6,3101.8,2.71]
[1768263359097,0.99925291,3102.8,3101.8,2.71]
[1768263359295,1.24405615,3102.7,3101.8,2.71]
[1768263359499,1.24408627,3102.6,3101.8,2.71]
[1768263359800,0.39695414,3102.5,3101.8,2.71]
[1768263360096,0.99925291,3102.8,3101.9,2.71]
[1768263360301,1.24409648,3102.7,3101.9,2.71]
[1768263360507,1.24409648,3102.6,3101.9,2.71]
[1768263360700,0.39696569,3102.5,3101.9,2.71]
[1768263360896,0.99925291,3102.8,3101.9,2.71]
[1768263361102,1.24047236,3102.7,3101.9,2.71]
[1768263361297,1.24046948,3102.6,3101.9,2.71]
[1768263361497,0.39333628,3102.5,3101.9,2.71]
[1768263361703,0.99925291,3102.8,3101.9,2.71]
[1768263361901,1.24048752,3102.7,3101.9,2.71]
[1768263362102,1.24048752,3102.6,3101.9,2.71]
[1768263362406,0.99925291,3102.2,3101.5,0.00339511]
[1768263362606,0.99925291,3102.3,3101.5,0.00339511]
[1768263362905,3.40163283,3102.9,3101.5,0.00339511]
[1768263362906,0.99925291,3102.1,3101.5,0.00339511]
[1768263363203,0.99925291,3102.1,3101.3,3.39568971]
[1768263363999,0.99925291,3102.1,3101.3,3.39967686]
[1768263364206,0.99925291,3102.1,3101.3,0.00398715]
[1768263365403,0.99925291,3101.5,3100.6,2.82295201]
[1768263365609,0.99925291,3101.7,3100.5,4.5908486]
[1768263365802,0.99925291,3101.9,3100.5,5.59010151]
[1768263366101,0.99925291,3101.9,3100.6,3.3519863]
[1768263366308,1.00205521,3101.9,3100.6,3.35585385]
[1768263372211,0.0028023,3101.9,3100.6,3.35585385]
[1768263372419,1.00205521,3101.9,3100.6,3.35585385]
[1768263372803,0.0028023,3101.9,3100.6,3.35585385]
[1768263373504,0.0028023,3101.9,3100.9,3.36930479]
[1768263373810,0.00482812,3102.2,3101.3,3.36930479]
[1768263374611,0.00813207,3102.2,3101.3,3.36930479]
[1768263380916,0.00813207,3102.2,3101.3,3.36930479]
[1768263394447,0.84722488,3102.1,3100.8,3.40680046]
[1768263394745,1.22346139,3102.0,3100.8,3.40680046]
[1768263394949,1.22346139,3101.9,3100.8,3.40680046]
[1768263395142,0.00813207,3102.2,3100.8,3.40680046]
[1768263395337,1.2234967,3102.1,3100.8,3.40680046]
[1768263395641,1.2234967,3102.0,3100.8,3.40680046]
[1768263395842,0.00813207,3102.2,3100.8,3.40680046]
[1768263396043,1.22348265,3102.1,3100.8,3.40680046]
[1768263396244,1.22348265,3102.0,3100.8,3.40680046]
[1768263396443,0.00813207,3102.2,3100.8,3.40680046]
[1768263396744,1.22349092,3102.1,3100.8,3.40680046]
[1768263396953,1.22349092,3102.0,3100.8,3.40680046]
[1768263397152,0.00813207,3102.2,3100.8,3.40680046]
[1768263397343,1.22348477,3102.1,3100.8,3.40680046]
[1768263397636,1.22348477,3102.0,3100.8,3.40680046]
[1768263397839,0.00813207,3102.2,3100.8,3.40680046]
[1768263398042,1.22346863,3102.1,3100.8,3.40680046]
[1768263398238,1.22346863,3102.0,3100.8,3.40680046]
[1768263398447,0.00813207,3102.2,3100.8,3.40680046]
[1768263398741,1.22347122,3102.1,3100.8,3.40680046]
[1768263398946,1.22347122,3102.0,3100.8,3.40680046]
[1768263399153,0.00813207,3102.2,3100.8,3.40680046]
[1768263399356,1.2234644,3102.1,3100.8,3.40680046]
[1768263399550,1.2234644,3102.0,3100.8,3.40680046]
[1768263399750,0.00813207,3102.2,3100.8,3.40680046]
[1768263399953,1.22342704,3102.1,3100.8,3.40680046]
[1768263400254,0.00813207,3102.2,3100.8,3.40680046]
[1768263400456,0.00813207,3102.2,3101.0,3.40680046]
[1768263402155,0.00813207,3102.2,3101.1,3.40680046]
[1768263403151,0.16131,3103.3,3101.6,3.40680046]
[1768263403340,0.37606039,3103.2,3101.6,1.368]
[1768263403544,1.569,3103.4,3101.7,3.40680046]
[1768263403750,0.37581824,3103.3,3101.8,3.40680046]
[1768263403950,0.00296469,3103.3,3101.8,3.40680046]
[1768263404553,0.00483605,3102.9,3101.8,3.40680046]
[1768263407853,0.00296469,3103.3,3101.9,3.40680046]
[1768263408155,0.00296469,3103.3,3102.0,3.41163651]
[1768263426765,0.16127,3104.0,3102.3,0.99933942]
[1768263426971,0.16127,3104.0,3102.4,3.49112221]
[1768263427165,3.41273339,3104.1,3102.4,3.49112221]
[1768263427364,0.16124,3104.6,3102.8,3.49112221]
[1768263427560,5.11115521,3104.9,3102.8,3.49112221]
[1768263427865,1.21793962,3104.8,3102.8,3.49384343]
[1768263428162,0.84321374,3104.7,3102.8,3.49384343]
[1768263428368,5.11463345,3104.9,3102.8,3.65517343]
[1768263430970,5.11463345,3104.9,3102.9,3.49112221]
[1768263431569,5.11463345,3104.9,3103.6,0.00483605]
[1768263431969,4.54549463,3104.8,3103.6,0.00483605]
[1768263432164,4.54549463,3104.4,3102.8,3.49384343]
[1768263432363,3.54615521,3104.3,3102.8,0.00272122]
[1768263433570,3.70741521,3104.3,3102.8,0.00272122]
[1768263435973,3.42243379,3104.1,3102.8,0.00272122]
[1768263444078,0.00483605,3103.8,3102.8,0.00272122]
[1768263444779,0.00483605,3103.8,3102.8,3.34204539]
[1768263447478,0.00483605,3103.8,3102.8,4.34031461]
[1768263448480,0.00483605,3103.8,3102.8,3.34204539]
[1768263460687,0.00483605,3103.8,3102.8,5.64901566]
[1768263462989,0.00483605,3103.8,3102.9,0.99826922]
[1768263463793,0.00483605,3103.8,3102.9,4.61895088]
[1768263469894,0.00483605,3103.8,3102.8,0.00272122]
[1768263470098,1.00310527,3103.8,3102.8,0.00272122]
[1768263470396,0.00483605,3103.8,3102.8,0.00272122]
[1768263480801,0.00483605,3103.8,3103.0,0.99826922]
[1768263482407,0.00483605,3103.8,3102.8,4.6216721]
[1768263486313,0.00483605,3103.8,3103.0,0.00483605]
[1768263531649,3.4307177,3103.8,3103.0,0.00483605]
[1768263531854,3.42588165,3103.6,3102.8,0.00272122]
[1768263532044,1.21930301,3103.5,3102.8,0.00272122]
[1768263532241,0.37630459,3103.4,3102.8,0.00272122]
[1768263532444,3.42588165,3103.6,3102.8,0.00272122]
[1768263532744,1.21842158,3103.5,3102.8,0.00272122]
[1768263532943,3.42588165,3103.6,3102.8,0.00272122]
[1768263533149,0.84239072,3103.5,3102.8,0.00272122]
[1768263533353,3.42588165,3103.6,3102.8,0.00272122]
[1768263538850,3.42588165,3103.3,3101.7,6.49379457]
[1768263539153,3.42588165,3103.3,3101.7,3.601556]
[1768263539749,3.42588165,3102.9,3101.3,3.601556]
[1768263539950,3.42588165,3102.7,3101.3,0.00374876]
[1768263540253,3.42928976,3102.7,3101.3,0.00374876]
[1768263551170,0.00340811,3102.7,3101.8,0.99835665]
[1768263551375,3.35654502,3103.1,3101.8,0.99835665]
[1768263551578,0.16131,3103.3,3101.9,3.35256357]
[1768263551877,3.35654502,3103.6,3101.9,3.35256357]
[1768263552079,3.35654502,3103.6,3102.2,0.99835665]
[1768263552477,3.36016076,3103.6,3102.2,0.99835665]
[1768263553479,3.36016076,3103.6,3102.2,4.54384724]
[1768263555075,0.00361574,3103.6,3102.6,0.99835665]
[1768263555273,0.00483605,3103.8,3102.6,4.54384724]
[1768263555579,3.38894183,3103.8,3102.3,0.99835665]
[1768263556179,3.39221948,3103.8,3102.3,0.99835665]
[1768263557874,0.0081137,3103.8,3102.4,3.54549059]
[1768263558081,3.39221948,3103.8,3102.3,0.99835665]
[1768263561182,3.55349948,3103.8,3102.0,3.54549059]
[1768263566978,3.54540578,3103.5,3101.6,3.54549059]
[1768263567181,3.38410578,3103.3,3101.3,1.00210541]
[1768263567584,3.38410578,3103.3,3101.3,4.547596]
[1768263569393,3.38410578,3103.0,3101.8,0.99901846]
[1768263571985,3.38410578,3102.8,3101.7,0.99901846]
[1768263572193,3.38410578,3102.8,3101.5,0.99901846]
[1768263580103,4.34080859,3102.5,3101.3,0.00374876]
[1768263580400,0.99901846,3103.2,3101.3,0.00374876]
[1768263580401,3.34179013,3102.2,3101.3,0.00374876]
[1768263580797,3.34662618,3102.2,3101.3,0.00374876]
[1768263582403,3.34662618,3102.2,3101.3,1.00276722]
[1768263582704,0.00483605,3102.2,3101.3,1.00276722]
[1768263590498,0.00483605,3102.2,3101.3,0.00374876]
[1768263591211,3.34662618,3102.2,3101.3,0.00374876]
[1768263598115,4.34564464,3102.2,3101.3,0.00374876]
[1768263598320,3.34179013,3102.1,3101.3,0.00374876]
[1768263599912,3.34179013,3102.1,3101.0,0.99901846]
[1768263600824,3.34179013,3102.1,3101.0,1.00157324]
[1768263604326,3.34179013,3102.1,3101.0,0.00255478]
[1768263608633,3.62513628,3101.9,3101.0,0.00255478]
[1768263616242,3.72099366,3101.8,3100.5,1.2388623]
[1768263616449,3.55960366,3101.4,3100.5,1.2388623]
[1768263617344,3.56361491,3101.4,3100.5,1.24246502]
[1768263618347,3.56361491,3101.4,3100.7,0.99901846]
[1768263618540,0.00401125,3101.4,3100.7,0.99901846]
[1768263619650,0.00401125,3101.4,3100.5,5.68396358]
[1768263619849,3.56443971,3102.2,3101.1,0.99901846]
[1768263620151,1.22705318,3102.1,3101.1,0.99901846]
[1768263620347,1.22705318,3102.0,3101.1,0.99901846]
[1768263620546,3.56443971,3102.2,3101.1,0.99901846]
[1768263620736,1.2271223,3102.1,3101.1,0.99901846]
[1768263620940,0.85119371,3102.0,3101.1,0.99901846]
[1768263621138,0.00240282,3102.1,3101.3,0.99901846]
[1768263621646,0.00240282,3102.1,3101.5,0.99901846]
[1768263622050,0.00483605,3102.2,3101.7,0.99901846]